bitfinex-derivatives/quotes_BTCF0:USTF0_20250901
["timestamp","ask_amount","ask_price","bid_price","bid_amount"]
[1756756481261,1.52965018,109300.0,109290.0,0.44374]
[1756756482368,1.53065018,109300.0,109290.0,0.44374]
[1756756482569,1.53061018,109300.0,109290.0,0.44374]
[1756756482770,1.24061018,109300.0,109290.0,0.49311589]
[1756756483070,0.40449018,109300.0,109290.0,0.49311589]
[1756756483265,1.24061018,109300.0,109290.0,0.49311589]
[1756756483867,1.24161018,109300.0,109290.0,0.49311589]
[1756756485168,1.315784,109300.0,109290.0,0.49311589]
[1756756485773,1.29650466,109300.0,109290.0,0.49311589]
[1756756486268,1.21650466,109300.0,109290.0,0.49311589]
[1756756487271,1.21650466,109300.0,109290.0,0.44374]
[1756756487576,1.21650466,109300.0,109290.0,0.49311589]
[1756756487876,0.38038466,109300.0,109290.0,0.49311589]
[1756756488073,1.21646466,109300.0,109290.0,0.49311589]
[1756756489067,0.91225382,109300.0,109290.0,0.49311589]
[1756756489374,1.21646466,109300.0,109290.0,0.49311589]
[1756756490774,0.91225382,109300.0,109290.0,0.49311589]
[1756756490981,1.21646466,109300.0,109290.0,0.49311589]
[1756756492164,1.23573012,109300.0,109290.0,0.44374]
[1756756492563,0.93151928,109300.0,109290.0,0.44374]
[1756756492770,1.23573012,109300.0,109290.0,0.44374]
[1756756494978,0.93151928,109300.0,109290.0,0.44374]
[1756756495179,1.23573012,109300.0,109290.0,0.44374]
[1756756496479,0.09543928,109300.0,109290.0,0.76374]
[1756756496680,0.93143928,109300.0,109290.0,0.44374]
[1756756498086,1.23565012,109300.0,109290.0,0.44374]
[1756756500786,0.93143928,109300.0,109290.0,0.44374]
[1756756500989,1.23565012,109300.0,109290.0,0.44374]
[1756756502284,1.21638466,109300.0,109290.0,0.44374]
[1756756505288,1.21638466,109300.0,109290.0,0.49311589]
[1756756509194,1.2357067,109300.0,109290.0,0.49311589]
[1756756509992,1.53957058,109300.0,109290.0,0.79715325]
[1756756516792,1.53957058,109300.0,109290.0,0.49311589]
[1756756516996,1.53957058,109300.0,109290.0,0.79715325]
[1756756520498,1.53957058,109300.0,109290.0,0.49311589]
[1756756520696,1.53957058,109300.0,109290.0,0.79715325]
[1756756523299,1.53957058,109300.0,109290.0,0.49311589]
[1756756524501,1.53957058,109300.0,109290.0,0.41017589]
[1756756524701,1.53957058,109300.0,109290.0,0.43516589]
[1756756524900,1.53957058,109300.0,109290.0,0.45772589]
[1756756525304,0.93149586,109300.0,109290.0,0.49315589]
[1756756525505,1.53957058,109300.0,109290.0,0.49315589]
[1756756526202,0.93149586,109300.0,109290.0,0.49315589]
[1756756526404,1.53957058,109300.0,109290.0,0.49315589]
[1756756527202,1.5395933,109300.0,109290.0,0.49315589]
[1756756536519,0.93111858,109300.0,109290.0,0.49315589]
[1756756536720,1.5391933,109300.0,109290.0,0.49315589]
[1756756538411,0.09551858,109300.0,109290.0,1.14719325]
[1756756538610,0.72211858,109300.0,109290.0,1.23869315]
[1756756538816,0.72211858,109300.0,109290.0,1.18931726]
[1756756539216,0.07617382,109300.0,109290.0,1.43931726]
[1756756542317,0.09548437,109300.0,109290.0,1.48872645]
[1756756544126,0.09548437,109300.0,109290.0,1.39722655]
[1756756545824,0.09548437,109300.0,109290.0,1.09318919]
[1756756546022,0.09548437,109300.0,109290.0,1.39722655]
[1756756546833,0.09548437,109300.0,109290.0,1.04722655]
[1756756547026,0.39952173,109300.0,109290.0,1.36722655]
[1756756551531,0.39952173,109300.0,109290.0,1.06318919]
[1756756551731,0.39952173,109300.0,109290.0,1.36722655]
[1756756552031,0.39952173,109300.0,109290.0,1.72802655]
[1756756552230,0.38021118,109300.0,109290.0,1.67861736]
[1756756553234,0.07617382,109300.0,109290.0,1.70861736]
[1756756553426,0.38021118,109300.0,109290.0,1.70861736]
[1756756555133,0.07617382,109300.0,109290.0,1.70861736]
[1756756555330,0.38021118,109300.0,109290.0,1.70861736]
[1756756557837,0.38021118,109300.0,109290.0,1.40458]
[1756756558038,0.38021118,109300.0,109290.0,1.70861736]
[1756756559339,0.38021118,109300.0,109290.0,1.45861736]
[1756756563740,0.38021118,109300.0,109290.0,1.10861736]
[1756756565242,0.38021118,109300.0,109290.0,0.80458]
[1756756565541,0.38021118,109300.0,109290.0,1.42861736]
[1756756568039,0.39953757,109300.0,109290.0,1.42861736]
[1756756569444,0.38021118,109300.0,109290.0,1.42861736]
[1756756570040,0.3995281,109300.0,109290.0,1.42861736]
[1756756570641,0.38021118,109300.0,109290.0,2.26377736]
[1756756571734,0.38021118,109300.0,109290.0,0.80458]
[1756756572049,0.07617382,109300.0,109290.0,1.10861736]
[1756756572236,0.39952811,109300.0,109290.0,1.10861736]
[1756756574842,0.09549075,109300.0,109290.0,1.10861736]
[1756756575049,0.39952811,109300.0,109290.0,1.10861736]
[1756756576440,0.09549075,109300.0,109290.0,1.10861736]
[1756756576646,0.39952811,109300.0,109290.0,1.10861736]
[1756756577541,0.09549075,109300.0,109290.0,1.10861736]
[1756756577741,0.39952811,109300.0,109290.0,1.10861736]
[1756756578751,0.38021118,109300.0,109290.0,1.10861736]
[1756756578945,0.38021118,109300.0,109290.0,1.17445188]
[1756756580347,0.38021118,109300.0,109290.0,0.87041452]
[1756756580550,0.38021118,109300.0,109290.0,1.17445188]
[1756756582145,0.3995292,109300.0,109290.0,1.22388943]
[1756756582351,0.3995292,109300.0,109290.0,1.15805491]
[1756756586753,0.09549184,109300.0,109290.0,1.15805491]
[1756756586952,0.3995292,109300.0,109290.0,1.15805491]
[1756756587553,0.38021118,109300.0,109290.0,1.15805491]
[1756756587848,0.37921118,109300.0,109290.0,1.10861736]
[1756756588053,0.37821118,109300.0,109290.0,1.10861736]
[1756756588446,0.39752942,109300.0,109290.0,1.1580553]
[1756756589358,0.09349206,109300.0,109290.0,1.1580553]
[1756756589554,0.39752942,109300.0,109290.0,1.1580553]
[1756756590454,0.09349206,109300.0,109290.0,1.1580553]
[1756756590656,0.39752942,109300.0,109290.0,1.4680553]
[1756756592266,0.37821118,109300.0,109290.0,1.48453461]
[1756756595160,0.07417382,109300.0,109290.0,1.48453461]
[1756756595354,0.30403736,109300.0,109290.0,1.48453461]
[1756756596060,0.07388105,109300.0,109290.0,1.48453461]
[1756756596260,0.30403736,109300.0,109290.0,1.48453461]
[1756756600964,0.37844528,109300.0,109290.0,1.48453461]
[1756756602966,0.37844528,109300.0,109290.0,0.87049725]
[1756756603466,0.37844528,109300.0,109290.0,1.17453461]
[1756756605266,0.37844528,109300.0,109290.0,3.82453461]
[1756756605466,0.68248264,109300.0,109290.0,3.45458]
[1756756605768,0.95179197,109300.0,109290.0,3.45458]
[1756756606868,0.95179197,109300.0,109290.0,3.50401329]
[1756756607168,0.95279197,109300.0,109290.0,3.50401329]
[1756756608770,0.95379197,109300.0,109290.0,3.50401329]
[1756756609868,1.25782933,109300.0,109290.0,3.46858329]
[1756756610067,0.95379197,109300.0,109290.0,3.41915]
[1756756610259,0.95379197,109300.0,109290.0,3.45407]
[1756756611371,0.95379197,109300.0,109290.0,3.09327]
[1756756614870,1.25782933,109300.0,109290.0,3.09327]
[1756756615070,0.95379197,109300.0,109290.0,3.09327]
[1756756615461,1.25782933,109300.0,109290.0,2.69755]
[1756756615669,1.61862933,109300.0,109290.0,2.69755]
[1756756616574,1.61862933,109300.0,109290.0,2.73247]
[1756756619075,1.25782933,109300.0,109290.0,2.73247]
[1756756619263,1.00782933,109300.0,109290.0,2.73247]
[1756756620575,1.84242933,109300.0,109290.0,2.73247]
[1756756621866,2.20322933,109300.0,109290.0,2.73247]
[1756756626576,2.52322933,109300.0,109290.0,2.73247]
[1756756626777,1.68862933,109300.0,109290.0,2.73247]
[1756756627170,2.52314933,109300.0,109290.0,2.73247]
[1756756629781,1.68862933,109300.0,109290.0,2.73247]
[1756756629972,2.52314933,109300.0,109290.0,2.73247]
[1756756636070,2.16234933,109300.0,109290.0,2.73247]
[1756756636277,2.52314933,109300.0,109290.0,2.73247]
[1756756640683,2.57256162,109300.0,109290.0,2.73247]
[1756756642484,2.52314933,109300.0,109290.0,2.73247]
[1756756643077,1.68862933,109300.0,109290.0,2.73247]
[1756756643290,2.52298933,109300.0,109290.0,2.73247]
[1756756645085,2.16218933,109300.0,109290.0,2.73247]
[1756756645286,2.52298933,109300.0,109290.0,2.73247]
[1756756647186,2.52294933,109300.0,109290.0,2.73247]
[1756756655599,1.68862933,109300.0,109290.0,2.73247]
[1756756655800,2.52278933,109300.0,109290.0,2.73247]
[1756756660098,2.16198933,109300.0,109290.0,2.73247]
[1756756660406,2.52278933,109300.0,109290.0,2.73247]
[1756756672513,2.57220162,109300.0,109290.0,2.73247]
[1756756682124,1.73804162,109300.0,109290.0,2.73247]
[1756756682324,2.52238933,109300.0,109290.0,2.73247]
[1756756683228,1.68862933,109300.0,109290.0,2.73247]
[1756756683430,1.24943725,109300.0,109290.0,2.73247]
[1756756683731,2.16154933,109300.0,109290.0,2.73247]
[1756756684325,2.52234933,109300.0,109290.0,2.73247]
[1756756684729,1.68862933,109300.0,109290.0,2.73247]
[1756756685028,2.52234933,109300.0,109290.0,2.73247]
[1756756685226,2.52230933,109300.0,109290.0,2.73247]
[1756756688432,2.57172162,109300.0,109290.0,2.73247]
[1756756692034,2.52230933,109300.0,109290.0,2.73247]
[1756756693538,2.52218933,109300.0,109290.0,2.73247]
[1756756693727,2.52218933,109300.0,109290.0,3.34327]
[1756756693728,0.41571725,109300.0,109290.0,3.34327]
[1756756693932,1.85735197,109300.0,109290.0,3.34327]
[1756756694926,1.02379197,109300.0,109290.0,3.34327]
[1756756695238,1.55331461,109300.0,109290.0,3.69674065]
[1756756695535,1.55331461,109300.0,109290.0,3.39270329]
[1756756697537,1.85635197,109300.0,109290.0,3.39270329]
[1756756697737,1.85535197,109300.0,109290.0,3.39270329]
[1756756698134,1.83604264,109300.0,109290.0,3.39270329]
[1756756698334,0.37844528,109300.0,109290.0,3.69674065]
[1756756698637,1.21192528,109300.0,109290.0,4.06674065]
[1756756699338,0.37844528,109300.0,109290.0,4.06674065]
[1756756699538,1.21192528,109300.0,109290.0,4.06674065]
[1756756704635,1.21192528,109300.0,109290.0,4.15824055]
[1756756704839,1.21180528,109300.0,109290.0,4.15824055]
[1756756706541,0.90776792,109300.0,109290.0,4.15824055]
[1756756706739,1.21180528,109300.0,109290.0,4.15824055]
[1756756708242,0.37844528,109300.0,109290.0,4.15824055]
[1756756708443,1.21176528,109300.0,109290.0,4.15824055]
[1756756709440,1.21176528,109300.0,109290.0,3.82674065]
[1756756709644,1.51580264,109300.0,109290.0,3.14270329]
[1756756710539,1.51572264,109300.0,109290.0,3.14270329]
[1756756712648,0.68248264,109300.0,109290.0,3.14270329]
[1756756712948,0.90760792,109300.0,109290.0,3.14270329]
[1756756713247,1.51568264,109300.0,109290.0,3.14270329]
[1756756715147,0.68248264,109300.0,109290.0,3.14270329]
[1756756715347,1.51564264,109300.0,109290.0,3.14270329]
[1756756715548,0.68248264,109300.0,109290.0,3.14270329]
[1756756715745,0.68248264,109300.0,109290.0,3.09327]
[1756756715746,1.51564264,109300.0,109290.0,3.09327]
[1756756717044,1.51664264,109300.0,109290.0,3.09327]
[1756756717348,1.51664264,109300.0,109290.0,3.14270329]
[1756756717746,1.51764264,109300.0,109290.0,3.14270329]
[1756756719042,0.68448264,109300.0,109290.0,3.14270329]
[1756756719241,1.51760264,109300.0,109290.0,3.14270329]
[1756756720548,0.90952792,109300.0,109290.0,3.14270329]
[1756756720848,1.51760264,109300.0,109290.0,3.14270329]
[1756756721753,1.51760264,109300.0,109290.0,3.44674065]
[1756756721754,1.21356528,109300.0,109290.0,3.44674065]
[1756756722446,1.23293724,109300.0,109290.0,3.44674065]
[1756756724153,1.23293724,109300.0,109290.0,3.14270329]
[1756756724356,1.23293724,109300.0,109290.0,3.44674065]
[1756756725457,1.23285724,109300.0,109290.0,3.44674065]
[1756756725958,1.23285724,109300.0,109290.0,3.08594065]
[1756756726258,1.23285724,109300.0,109290.0,3.80754065]
[1756756728260,1.23285724,109300.0,109290.0,3.50350329]
[1756756728559,1.23281724,109300.0,109290.0,3.80754065]
[1756756729857,1.23277724,109300.0,109290.0,4.18754065]
[1756756730058,1.23277724,109300.0,109290.0,3.80754065]
[1756756730860,1.23277724,109300.0,109290.0,3.50350329]
[1756756731062,1.23277724,109300.0,109290.0,3.80754065]
[1756756732462,1.21340528,109300.0,109290.0,3.75810736]
[1756756733463,1.21340528,109300.0,109290.0,3.45407]
[1756756733766,1.21340528,109300.0,109290.0,3.75810736]
[1756756736066,1.51744264,109300.0,109290.0,3.45407]
[1756756737370,1.53683589,109300.0,109290.0,3.45407]
[1756756744975,1.53683589,109300.0,109290.0,3.75810736]
[1756756746975,1.53683589,109300.0,109290.0,3.45407]
[1756756748175,1.53683589,109300.0,109290.0,3.75810736]
[1756756749379,0.70387589,109300.0,109290.0,3.75810736]
[1756756749580,1.53663589,109300.0,109290.0,3.75810736]
[1756756749782,1.23259853,109300.0,109290.0,3.75810736]
[1756756749968,0.09580117,109300.0,109290.0,3.75810736]
[1756756750272,1.23255853,109300.0,109290.0,3.75810736]
[1756756756982,1.23255853,109300.0,109290.0,3.45407]
[1756756757180,1.23255853,109300.0,109290.0,3.75810736]
[1756756758174,1.23255853,109300.0,109290.0,3.45407]
[1756756758480,1.23255853,109300.0,109290.0,3.75810736]
[1756756759783,1.53659589,109300.0,109290.0,3.75810736]
[1756756765191,0.92852117,109300.0,109290.0,3.75810736]
[1756756765393,1.53659589,109300.0,109290.0,3.75810736]
[1756756769988,1.53659589,109300.0,109290.0,3.82402461]
[1756756770501,1.53659589,109300.0,109290.0,3.75810736]
[1756756772505,1.53659589,109300.0,109290.0,3.80753847]
[1756756782511,1.53659589,109300.0,109290.0,3.75810736]
[1756756785513,1.53659589,109300.0,109290.0,3.45407]
[1756756785812,1.53659589,109300.0,109290.0,3.75810736]
[1756756787513,1.53659589,109300.0,109290.0,3.82402461]
[1756756788314,0.39983853,109300.0,109290.0,3.82402461]
[1756756788518,1.23211853,109300.0,109290.0,3.82402461]
[1756756789921,1.53615589,109300.0,109290.0,3.82402461]
[1756756792125,1.53615589,109300.0,109290.0,3.51998725]
[1756756792321,1.53515589,109300.0,109290.0,3.51998725]
[1756756793325,1.53415589,109300.0,109290.0,3.51998725]
[1756756794026,1.53515589,109300.0,109290.0,3.51998725]
[1756756794323,1.53615589,109300.0,109290.0,3.51998725]
[1756756799930,0.92808117,109300.0,109290.0,3.51998725]
[1756756800135,0.92808117,109300.0,109290.0,3.82402461]
[1756756800319,1.23211853,109300.0,109290.0,3.82402461]
[1756756801026,1.21272528,109300.0,109290.0,3.51998725]
[1756756801230,1.23214279,109300.0,109290.0,3.82402461]
[1756756801430,1.23198279,109300.0,109290.0,3.82402461]
[1756756801631,1.23198279,109300.0,109290.0,3.75810736]
[1756756802029,1.23198279,109300.0,109290.0,3.82402461]
[1756756802230,0.09582543,109300.0,109290.0,3.82402461]
[1756756802426,0.92794543,109300.0,109290.0,3.82402461]
[1756756802632,0.90852792,109300.0,109290.0,3.82402461]
[1756756802827,1.23198182,109300.0,109290.0,3.51998725]
[1756756803028,1.23198182,109300.0,109290.0,3.82402461]
[1756756803534,1.53601918,109300.0,109290.0,3.82402461]
[1756756803828,1.53601918,109300.0,109290.0,3.51998725]
[1756756804034,1.78601918,109300.0,109290.0,3.45407]
[1756756804420,1.78601918,109300.0,109290.0,3.50350465]
[1756756811940,1.76660264,109300.0,109290.0,3.50350465]
[1756756812241,1.78594221,109300.0,109290.0,3.50350465]
[1756756812437,1.78594221,109300.0,109290.0,3.45407]
[1756756814532,1.83997957,109300.0,109290.0,3.09327]
[1756756815146,2.08997957,109300.0,109290.0,2.69755]
[1756756815634,2.45077957,109300.0,109290.0,2.65]
[1756756818347,3.84077957,109300.0,109290.0,2.65]
[1756756818948,4.21077957,109300.0,109290.0,2.65]
[1756756820046,4.21077957,109300.0,109290.0,2.68387]
[1756756820246,4.21073957,109300.0,109290.0,2.68387]
[1756756820640,3.90670221,109300.0,109290.0,2.68387]
[1756756820944,3.65670221,109300.0,109290.0,2.68387]
[1756756825249,2.26670221,109300.0,109290.0,2.68387]
[1756756826746,2.57073957,109300.0,109290.0,2.68387]
[1756756835656,1.65862749,109300.0,109290.0,2.68387]
[1756756835956,2.57073957,109300.0,109290.0,2.68387]
[1756756840360,2.57069957,109300.0,109290.0,2.68387]
[1756756841560,3.96069957,109300.0,109290.0,2.68387]
[1756756847664,2.57069957,109300.0,109290.0,2.68387]
[1756756852261,2.20989957,109300.0,109290.0,2.68387]
[1756756852563,2.57069957,109300.0,109290.0,2.68387]
[1756756853466,2.57069957,109300.0,109290.0,2.65]
[1756756854070,2.57069957,109300.0,109290.0,2.6873]
[1756756858783,1.73865957,109300.0,109290.0,2.6873]
[1756756859284,2.57061957,109300.0,109290.0,2.6873]
[1756756860385,2.57061957,109300.0,109290.0,1.93503881]
[1756756860386,2.82061957,109300.0,109290.0,1.93503881]
[1756756861384,2.87003186,109300.0,109290.0,1.22007762]
[1756756862382,2.82061957,109300.0,109290.0,0.59116643]
[1756756862585,2.87003186,109300.0,109290.0,0.59116643]
[1756756864489,2.03807186,109300.0,109290.0,0.59116643]
[1756756864692,2.87015186,109300.0,109290.0,0.59116643]
[1756756864889,2.03807186,109300.0,109290.0,0.59116643]
[1756756865088,2.5660345,109300.0,109290.0,0.59116643]
[1756756866783,2.87007186,109300.0,109290.0,0.59116643]
[1756756866988,2.87007186,109300.0,109290.0,0.52993643]
[1756756867185,2.03807186,109300.0,109290.0,0.55303643]
[1756756867488,2.87119186,109300.0,109290.0,0.58850643]
[1756756867679,2.5671545,109300.0,109290.0,0.58850643]
[1756756869086,2.5671545,109300.0,109290.0,0.55303643]
[1756756869487,1.95907978,109300.0,109290.0,0.58850643]
[1756756869685,2.5671545,109300.0,109290.0,0.58850643]
[1756756869990,2.5671545,109300.0,109290.0,0.55303643]
[1756756870193,2.5671545,109300.0,109290.0,0.58850643]
[1756756872593,2.51774221,109300.0,109290.0,0.58850643]
[1756756872995,1.90966749,109300.0,109290.0,0.58850643]
[1756756873292,2.51774221,109300.0,109290.0,0.58850643]
[1756756873496,1.68462221,109300.0,109290.0,0.58850643]
[1756756873696,2.51782221,109300.0,109290.0,0.58850643]
[1756756874490,1.43462221,109300.0,109290.0,0.58850643]
[1756756874691,0.46574749,109300.0,109290.0,1.14254379]
[1756756874894,0.76978485,109300.0,109290.0,1.14254379]
[1756756875095,1.60302485,109300.0,109290.0,1.14254379]
[1756756875896,1.96382485,109300.0,109290.0,1.14254379]
[1756756876099,1.65978749,109300.0,109290.0,0.83850643]
[1756756878097,1.96386193,109300.0,109290.0,0.83850643]
[1756756881298,1.60306193,109300.0,109290.0,0.83850643]
[1756756881700,1.96386193,109300.0,109290.0,0.83850643]
[1756756889406,1.65978749,109300.0,109290.0,0.83850643]
[1756756889703,1.96386193,109300.0,109290.0,0.83850643]
[1756756890605,1.65978749,109300.0,109290.0,0.83850643]
[1756756890906,1.96386193,109300.0,109290.0,0.83850643]
[1756756891600,1.65966749,109300.0,109290.0,0.83850643]
[1756756891795,1.13062193,109300.0,109290.0,0.83850643]
[1756756892001,1.96390193,109300.0,109290.0,0.83850643]
[1756756892308,1.13062193,109300.0,109290.0,0.83850643]
[1756756892607,1.96386193,109300.0,109290.0,0.83850643]
[1756756893207,1.13062193,109300.0,109290.0,0.83850643]
[1756756893399,1.96386193,109300.0,109290.0,0.83850643]
[1756756895911,1.65978749,109300.0,109290.0,0.83850643]
[1756756896209,1.96388403,109300.0,109290.0,1.14260297]
[1756756898512,1.96388403,109300.0,109290.0,0.83850643]
[1756756898714,1.96388403,109300.0,109290.0,1.14260297]
[1756756899513,2.26798057,109300.0,109290.0,1.14260297]
[1756756900615,2.26798057,109300.0,109290.0,0.83850643]
[1756756900812,2.26798057,109300.0,109290.0,1.14260297]
[1756756901714,1.65978749,109300.0,109290.0,1.14260297]
[1756756901915,2.26798057,109300.0,109290.0,1.14260297]
[1756756902614,2.31739286,109300.0,109290.0,1.14260297]
[1756756903514,2.01329632,109300.0,109290.0,1.14260297]
[1756756906417,2.31739286,109300.0,109290.0,1.14260297]
[1756756907617,2.01329632,109300.0,109290.0,1.14260297]
[1756756915121,2.01329632,109300.0,109290.0,0.83850643]
[1756756915432,2.01329632,109300.0,109290.0,1.14260297]
[1756756916636,2.31739286,109300.0,109290.0,0.83850643]
[1756756916835,2.31739286,109300.0,109290.0,1.14260297]
[1756756918637,2.26798057,109300.0,109290.0,1.14260297]
[1756756919337,2.26798057,109300.0,109290.0,0.89260297]
[1756756920437,1.65978749,109300.0,109290.0,0.89260297]
[1756756920635,2.26798057,109300.0,109290.0,0.89260297]
[1756756921737,1.96388403,109300.0,109290.0,0.89260297]
[1756756924734,1.60308403,109300.0,109290.0,1.25340297]
[1756756924941,1.90718057,109300.0,109290.0,0.55303643]
[1756756925137,1.60308403,109300.0,109290.0,0.95589643]
[1756756925335,1.60308403,109300.0,109290.0,0.59509643]
[1756756925944,1.96388403,109300.0,109290.0,0.59509643]
[1756756927441,1.65978749,109300.0,109290.0,0.59509643]
[1756756927642,1.60308403,109300.0,109290.0,0.59509643]
[1756756928143,1.96388403,109300.0,109290.0,0.59509643]
[1756756929148,2.26798057,109300.0,109290.0,0.59509643]
[1756756929838,2.2679885,109300.0,109290.0,0.59509643]
[1756756932152,1.65979542,109300.0,109290.0,0.59509643]
[1756756932341,2.2679885,109300.0,109290.0,0.59509643]
[1756756932542,2.2679885,109300.0,109290.0,0.89919297]
[1756756933252,1.96389196,109300.0,109290.0,0.89919297]
[1756756934348,1.96389196,109300.0,109290.0,0.59509643]
[1756756934552,2.01330425,109300.0,109290.0,0.89919297]
[1756756935954,1.70920771,109300.0,109290.0,0.59509643]
[1756756936161,1.70920771,109300.0,109290.0,0.89919297]
[1756756936361,2.01330425,109300.0,109290.0,0.89919297]
[1756756936660,2.31740079,109300.0,109290.0,0.59509643]
[1756756937153,2.31740079,109300.0,109290.0,0.50968643]
[1756756937154,2.5179885,109300.0,109290.0,0.50968643]
[1756756937368,2.56740079,109300.0,109290.0,0.50968643]
[1756756940162,2.56739541,109300.0,109290.0,0.50968643]
[1756756940856,2.20659541,109300.0,109290.0,0.50968643]
[1756756941057,2.92819541,109300.0,109290.0,0.50968643]
[1756756946464,2.92819541,109300.0,109290.0,0.50511643]
[1756756946664,2.92819541,109300.0,109290.0,0.52815643]
[1756756946866,2.92819541,109300.0,109290.0,0.50511643]
[1756756947664,2.92819541,109300.0,109290.0,0.52815643]
[1756756948665,2.92819541,109300.0,109290.0,0.55303643]
[1756756948960,2.92819541,109300.0,109290.0,0.52815643]
[1756756949366,2.92819541,109300.0,109290.0,0.55303643]
[1756756949561,2.92819541,109300.0,109290.0,0.52815643]
[1756756950568,3.23229195,109300.0,109290.0,0.50209751]
[1756756950868,3.23229195,109300.0,109290.0,0.52513751]
[1756756951070,3.23229195,109300.0,109290.0,0.50209751]
[1756756951264,3.23229195,109300.0,109290.0,0.52513751]
[1756756951466,3.23229195,109300.0,109290.0,0.48071718]
[1756756951665,3.28782123,109300.0,109290.0,0.23352296]
[1756756952666,3.35370428,109300.0,109290.0,0.19134062]
[1756756952867,3.45370428,109300.0,109290.0,0.19134062]
[1756756953570,4.20254233,109300.0,109290.0,0.19134062]
[1756756954968,4.20634233,109300.0,109290.0,0.19134062]
[1756756959172,3.90224579,109300.0,109290.0,0.19134062]
[1756756959374,3.36930233,109300.0,109290.0,0.19134062]
[1756756959570,4.20882233,109300.0,109290.0,0.19134062]
[1756756962284,4.20882233,109300.0,109290.0,0.17988062]
[1756756962589,4.19232047,109300.0,109290.0,0.17988062]
[1756756964589,4.19232047,109300.0,109290.0,0.20431062]
[1756756965086,4.19232047,109300.0,109290.0,0.17988062]
[1756756965286,4.14293928,109300.0,109290.0,0.17988062]
[1756756966292,4.14293928,109300.0,109290.0,0.20431062]
[1756756966792,4.14293928,109300.0,109290.0,0.17988062]
[1756756968991,4.14293928,109300.0,109290.0,0.16286062]
[1756756973395,4.20882233,109300.0,109290.0,0.18729062]
[1756756973596,4.20882233,109300.0,109290.0,0.16286062]
[1756756974500,4.14293928,109300.0,109290.0,0.16286062]
[1756756974703,4.14293928,109300.0,109290.0,0.14620062]
[1756756975096,4.20882233,109300.0,109290.0,0.14620062]
[1756756975702,4.20882233,109300.0,109290.0,0.17063062]
[1756756978699,4.20882233,109300.0,109290.0,0.14620062]
[1756756979205,3.95882233,109300.0,109290.0,0.14620062]
[1756756980607,3.95882233,109300.0,109290.0,0.12420062]
[1756756980801,3.95982233,109300.0,109290.0,0.12420062]
[1756756982507,3.95982233,109300.0,109290.0,0.14863062]
[1756756983708,3.95982233,109300.0,109290.0,0.17174062]
[1756756984405,5.89422233,109300.0,109290.0,0.17174062]
[1756756984804,0.08098,109290.0,109280.0,0.0474]
[1756756985004,1.46875271,109290.0,109280.0,0.0474]
[1756756986911,1.46875271,109290.0,109280.0,0.02443]
[1756756987114,1.4203152,109290.0,109270.0,0.01347]
[1756756987309,1.94050805,109280.0,109270.0,0.04668]
[1756756987612,2.26985017,109280.0,109270.0,0.04668]
[1756756988010,2.3914156,109280.0,109270.0,0.04668]
[1756756989211,2.3914156,109280.0,109270.0,0.08583]
[1756756989212,4.3258156,109280.0,109270.0,0.08583]
[1756756989713,4.3258156,109280.0,109270.0,0.08483]
[1756756990713,4.30647348,109280.0,109270.0,0.08483]
[1756756990905,4.32584502,109280.0,109270.0,0.08383]
[1756756991101,0.08464,109270.0,109260.0,0.08383]
[1756756991310,1.91594808,109270.0,109260.0,0.08383]
[1756756991611,0.77481154,109270.0,109260.0,0.08383]
[1756756991813,1.07890808,109270.0,109260.0,0.08383]
[1756756992016,1.91586808,109270.0,109260.0,0.38792654]
[1756756992308,0.32937154,109270.0,109260.0,1.30382308]
[1756756992513,1.16637154,109270.0,109260.0,1.30382308]
[1756756992707,1.16637154,109270.0,109260.0,1.65735427]
[1756756992906,0.32937154,109270.0,109260.0,1.65735427]
[1756756993106,1.16641154,109270.0,109260.0,1.65835427]
[1756756993310,1.16641154,109270.0,109260.0,1.35425773]
[1756756999511,0.32937154,109270.0,109260.0,1.35425773]
[1756756999713,1.14656,109270.0,109260.0,1.74987707]
[1756756999910,1.14672,109270.0,109260.0,2.10987707]
[1756757000311,1.14672,109270.0,109260.0,2.06987707]
[1756757002717,1.14672,109270.0,109260.0,2.02044242]
[1756757003312,1.14672,109270.0,109260.0,1.70044242]
[1756757004114,0.31,109270.0,109260.0,1.70044242]
[1756757004416,1.14656,109270.0,109260.0,1.70044242]
[1756757004917,0.31,109270.0,109260.0,1.70044242]
[1756757005222,0.11054792,109300.0,109280.0,0.04668]
[1756757005410,0.52837311,109300.0,109290.0,0.74872654]
[1756757005609,1.36477311,109300.0,109290.0,0.74872654]
[1756757007116,1.68363965,109300.0,109290.0,0.74872654]
[1756757007306,1.68363965,109300.0,109290.0,0.68860654]
[1756757007509,1.68563965,109300.0,109290.0,0.68860654]
[1756757008016,1.68863965,109300.0,109290.0,0.68860654]
[1756757008410,1.68963965,109300.0,109290.0,0.68860654]
[1756757009020,1.38554311,109300.0,109290.0,0.71157654]
[1756757009219,1.68963965,109300.0,109290.0,0.71157654]
[1756757009420,1.68963167,109300.0,109290.0,0.71157654]
[1756757010221,1.38553513,109300.0,109290.0,0.40748]
[1756757010417,1.38553513,109300.0,109290.0,0.04668]
[1756757010618,1.38553513,109300.0,109290.0,0.44463]
[1756757010919,1.38453513,109300.0,109290.0,0.08383]
[1756757011613,1.38353513,109300.0,109290.0,0.08383]
[1756757011820,1.38353513,109300.0,109290.0,0.38789945]
[1756757012622,1.38353513,109300.0,109290.0,0.35074945]
[1756757013823,1.38353513,109300.0,109290.0,0.38789945]
[1756757016126,1.38353513,109300.0,109290.0,0.74869945]
[1756757016326,1.38353513,109300.0,109290.0,0.38789945]
[1756757016820,0.54713513,109300.0,109290.0,0.38789945]
[1756757017120,1.36776513,109300.0,109290.0,0.38789945]
[1756757017723,1.38258513,109300.0,109290.0,0.38789945]
[1756757020733,1.38258513,109300.0,109290.0,0.74869945]
[1756757024034,1.38258513,109300.0,109290.0,0.38789945]
[1756757027638,0.53236513,109300.0,109290.0,0.74869945]
[1756757027936,1.36688513,109300.0,109290.0,1.0527689]
[1756757028235,1.36688513,109300.0,109290.0,0.74869945]
[1756757029938,1.36688513,109300.0,109290.0,0.44463]
[1756757030140,1.38170513,109300.0,109290.0,0.74869945]
[1756757031748,1.36688513,109300.0,109290.0,0.74869945]
[1756757031949,1.36688513,109300.0,109290.0,0.74865171]
[1756757033448,1.38170513,109300.0,109290.0,0.74865171]
[1756757041653,0.53236513,109300.0,109290.0,0.74865171]
[1756757041954,0.53236513,109300.0,109290.0,1.3519555]
[1756757042154,1.31226792,109300.0,109290.0,1.3519555]
[1756757042451,1.34807792,109300.0,109290.0,1.3519555]
[1756757042652,1.36742396,109300.0,109290.0,1.3519555]
[1756757045355,1.34807792,109300.0,109290.0,1.3519555]
[1756757045655,1.34807792,109300.0,109290.0,0.74391208]
[1756757045855,1.34807792,109300.0,109290.0,1.3519555]
[1756757049560,0.42840792,109300.0,109290.0,2.12747591]
[1756757049862,0.42840792,109300.0,109290.0,1.4434542]
[1756757049863,1.26320792,109300.0,109290.0,1.4434542]
[1756757050055,1.26420792,109300.0,109290.0,1.4434542]
[1756757052764,1.26420792,109300.0,109290.0,1.39417212]
[1756757053060,1.30163792,109300.0,109290.0,1.30267342]